fUSD/lending_fUSD_20260628
["ID","MTS","AMOUNT","RATE_DAILY","PERIOD"]
[426608307,1782661844000,-158.93,0.00035826,30]
[426608310,1782661844000,-3607.3863016,0.00035839,2]
[426608306,1782661844000,-150.0,0.00035826,2]
[426608299,1782661844000,-159.21,0.00035745,2]
[426608282,1782661844000,-184.8159702,0.00035616,2]
[426608279,1782661844000,-1599.82,0.00035603,7]
[426608283,1782661844000,-364.69,0.00035616,2]
[426608308,1782661844000,-159.21,0.00035827,30]
[426608259,1782661844000,-153.80243392,0.00035499,120]
[426608258,1782661844000,-158.93,0.00035498,2]
[426608261,1782661844000,-2484.18,0.000355,30]
[426608265,1782661844000,-1407.36,0.00035503,30]
[426608260,1782661844000,-159.21,0.00035499,2]
[426608262,1782661844000,-1660.56,0.00035503,30]
[426608263,1782661844000,-1433.66,0.00035503,30]
[426608264,1782661844000,-1672.11,0.00035503,30]
[426608269,1782661844000,-425.0,0.00035531,7]
[426608275,1782661844000,-241304.32810256,0.00035569,2]
[426608266,1782661844000,-164.86054628,0.00035516,2]
[426608272,1782661844000,-159.21,0.0003554,7]
[426608273,1782661844000,-150.0,0.0003555,7]
[426608268,1782661844000,-212.99,0.00035527,2]
[426608271,1782661844000,-158.93,0.00035539,7]
[426608270,1782661844000,-202.0,0.00035531,7]
[426608274,1782661844000,-500.0,0.00035568,2]
[426608276,1782661844000,-159.47,0.0003557,80]
[426608286,1782661844000,-158.93,0.00035662,7]
[426608281,1782661844000,-252.2,0.00035616,60]
[426608277,1782661844000,-158.93,0.0003558,30]
[426608285,1782661844000,-159.21,0.00035622,2]
[426608278,1782661844000,-159.21,0.00035581,30]
[426608267,1782661844000,-154.63160351,0.00035516,2]
[426608309,1782661844000,-501.0,0.00035837,3]
[426608311,1782661844000,-158.93,0.00035867,2]
[426608338,1782661844000,-151.0,0.00036077,7]
[426608340,1782661844000,-161.80806516,0.00036084,30]
[426608341,1782661844000,-158.93,0.00036114,2]
[426608339,1782661844000,-225.50697562,0.00036084,30]
[426608342,1782661844000,-159.21,0.00036114,2]
[426608344,1782661844000,-1433.66,0.00036135,30]
[426608343,1782661844000,-1660.56,0.00036135,30]
[426608351,1782661844000,-159.21,0.00036196,30]
[426608347,1782661844000,-158.93,0.00036155,7]
[426608349,1782661844000,-150.42569425,0.00036194,30]
[426608350,1782661844000,-158.93,0.00036196,30]
[426608353,1782661844000,-158.93,0.00036237,2]
[426608359,1782661844000,-2484.18,0.000363,30]
[426608357,1782661844000,-159.38,0.00036278,7]
[426608354,1782661844000,-159.21,0.00036237,2]
[426608355,1782661844000,-389.68965321,0.00036259,2]
[426608352,1782661844000,-623.73664059,0.000362,120]
[426608362,1782661844000,-1433.66,0.00036346,7]
[426608356,1782661844000,-158.96,0.00036278,7]
[426608361,1782661844000,-1660.56,0.00036346,7]
[426608358,1782661844000,-1599.83,0.00036288,7]
[426608360,1782661844000,-501.0,0.00036317,4]
[426608312,1782661844000,-159.21,0.00035868,2]
[426608334,1782661844000,-159.47,0.0003605,110]
[426608337,1782661844000,-159.21,0.00036073,30]
[426608348,1782661844000,-159.21,0.00036155,7]
[426608335,1782661844000,-186.95128508,0.00036055,2]
[426608318,1782661844000,-159.21,0.00035909,7]
[426608346,1782661844000,-1407.36,0.00036135,30]
[426608317,1782661844000,-158.93,0.00035908,7]
[426608315,1782661844000,-275591.0,0.0003589,30]
[426608316,1782661844000,-2484.18,0.000359,30]
[426608314,1782661844000,-500.0,0.00035889,2]
[426608320,1782661844000,-500.0,0.00035915,30]
[426608319,1782661844000,-500.0,0.00035915,30]
[426608321,1782661844000,-320.1786191,0.00035915,30]
[426608322,1782661844000,-1660.56,0.00035924,2]
[426608327,1782661844000,-159.21,0.0003595,30]
[426608326,1782661844000,-158.93,0.00035949,30]
[426608313,1782661844000,-500.0,0.00035889,2]
[426608325,1782661844000,-1407.36,0.00035924,2]
[426608323,1782661844000,-1433.66,0.00035924,2]
[426608324,1782661844000,-1672.11,0.00035924,2]
[426608333,1782661844000,-211.09556235,0.00036043,2]
[426608332,1782661844000,-159.21,0.00036032,7]
[426608330,1782661844000,-159.21,0.00035991,2]
[426608331,1782661844000,-158.93,0.00036032,7]
[426608329,1782661844000,-158.93,0.0003599,2]
[426608328,1782661844000,-164.86054624,0.00035959,2]
[426608345,1782661844000,-1672.11,0.00036135,30]
[426608336,1782661844000,-158.93,0.00036073,30]
[426608400,1782661845000,-506.59,0.00036441,7]
[426608402,1782661845000,-500.0,0.00036441,7]
[426608401,1782661845000,-500.0,0.00036441,7]
[426608411,1782661845000,-700.0,0.00036491,2]
[426608395,1782661845000,-500.0,0.00036441,7]
[426608393,1782661845000,-500.0,0.00036441,7]
[426608399,1782661845000,-500.0,0.00036441,7]
[426608397,1782661845000,-500.0,0.00036441,7]
[426608390,1782661845000,-500.0,0.00036441,7]
[426608391,1782661845000,-500.0,0.00036441,7]
[426608404,1782661845000,-500.0,0.00036441,7]
[426608396,1782661845000,-500.0,0.00036441,7]
[426608405,1782661845000,-500.0,0.00036441,7]
[426608417,1782661845000,-509.62,0.00036638,120]
[426608407,1782661845000,-500.0,0.00036441,7]
[426608406,1782661845000,-500.0,0.00036441,7]
[426608409,1782661845000,-500.0,0.00036441,7]
[426608408,1782661845000,-500.0,0.00036441,7]
[426608410,1782661845000,-237.85,0.00036441,7]
[426608413,1782661845000,-170.63596778,0.000365,2]
[426608423,1782661845000,-151.0,0.00036697,14]
[426608412,1782661845000,-285.0,0.000365,3]
[426608424,1782661845000,-2484.18,0.000367,30]
[426608421,1782661845000,-186.95128507,0.00036678,2]
[426608420,1782661845000,-179.43157068,0.00036663,2]
[426608389,1782661845000,-500.0,0.00036441,7]
[426608403,1782661845000,-500.0,0.00036441,7]
[426608394,1782661845000,-500.0,0.00036441,7]
[426608366,1782661845000,-203.03060314,0.00036401,8]
[426608398,1782661845000,-500.0,0.00036441,7]
[426608374,1782661845000,-164.86054624,0.00036403,2]
[426608370,1782661845000,-203.03060308,0.00036401,8]
[426608373,1782661845000,-203.03060308,0.00036401,8]
[426608368,1782661845000,-203.03060308,0.00036401,8]
[426608372,1782661845000,-203.03060308,0.00036401,8]
[426608367,1782661845000,-203.03060308,0.00036401,8]
[426608363,1782661845000,-1672.11,0.00036346,7]
[426608364,1782661845000,-1407.36,0.00036346,7]
[426608369,1782661845000,-203.03060308,0.00036401,8]
[426608371,1782661845000,-203.03060308,0.00036401,8]
[426608375,1782661845000,-500.0,0.00036441,7]
[426608365,1782661845000,-3340.3272912,0.00036349,2]
[426608392,1782661845000,-500.0,0.00036441,7]
[426608376,1782661845000,-500.0,0.00036441,7]
[426608388,1782661845000,-500.0,0.00036441,7]
[426608385,1782661845000,-500.0,0.00036441,7]
[426608384,1782661845000,-500.0,0.00036441,7]
[426608386,1782661845000,-500.0,0.00036441,7]
[426608381,1782661845000,-500.0,0.00036441,7]
[426608377,1782661845000,-500.0,0.00036441,7]
[426608378,1782661845000,-500.0,0.00036441,7]
[426608379,1782661845000,-500.0,0.00036441,7]
[426608419,1782661845000,-150.0,0.00036653,2]
[426608387,1782661845000,-500.0,0.00036441,7]
[426608383,1782661845000,-500.0,0.00036441,7]
[426608382,1782661845000,-500.0,0.00036441,7]
[426608380,1782661845000,-500.0,0.00036441,7]
[426608414,1782661845000,-159.47,0.0003654,120]
[426608461,1782661845000,-1007.7,0.00037,120]
[426608416,1782661845000,-570.46,0.00036609,14]
[426608456,1782661845000,-500.0,0.00036999,2]
[426608457,1782661845000,-275591.0,0.00037,30]
[426608455,1782661845000,-151.0,0.00036997,14]
[426608459,1782661845000,-800.0,0.00037,45]
[426608454,1782661845000,-304.0,0.00036952,7]
[426608463,1782661845000,-800.0,0.00037,45]
[426608466,1782661845000,-150.42569425,0.00037029,32]
[426608465,1782661845000,-870.08,0.00037012,7]
[426608462,1782661845000,-800.0,0.00037,45]
[426608464,1782661845000,-5000.0,0.00037012,7]
[426608471,1782661845000,-156.23118,0.0003707,85]
[426608469,1782661845000,-1007.7,0.00037055,120]
[426608452,1782661845000,-2110.0,0.00036947,2]
[426608467,1782661845000,-159.47,0.0003703,60]
[426608472,1782661845000,-156.23119,0.0003707,85]
[426608470,1782661845000,-669.99780079,0.00037067,120]
[426608473,1782661845000,-156.23119,0.0003707,85]
[426608478,1782661845000,-669.99780079,0.00037108,120]
[426608481,1782661845000,-152.45,0.00037119,60]
[426608480,1782661845000,-219.28,0.00037119,60]
[426608474,1782661845000,-156.23118,0.0003707,85]
[426608482,1782661845000,-500.0,0.0003713,2]
[426608475,1782661845000,-1021.91966135,0.00037074,2]
[426608476,1782661845000,-835.27969703,0.00037074,2]
[426608477,1782661845000,-2484.18,0.000371,30]
[426608479,1782661845000,-1007.7,0.00037109,120]
[426608468,1782661845000,-3340.3272912,0.00037031,2]
[426608460,1782661845000,-800.0,0.00037,45]
[426608415,1782661845000,-194.55249952,0.000366,30]
[426608453,1782661845000,-638.0,0.00036952,7]
[426608458,1782661845000,-800.0,0.00037,45]
[426608422,1782661845000,-1756.0,0.0003669,10]
[426608418,1782661845000,-2447.89,0.00036652,14]
[426608425,1782661845000,-252.2,0.00036712,60]
[426608426,1782661845000,-150.0,0.00036712,60]
[426608430,1782661845000,-500.0,0.00036712,2]
[426608436,1782661845000,-152.0,0.00036825,7]
[426608429,1782661845000,-500.0,0.00036712,2]
[426608434,1782661845000,-389.68965321,0.0003678,2]
[426608427,1782661845000,-500.0,0.00036712,60]
[426608432,1782661845000,-500.0,0.00036712,2]
[426608435,1782661845000,-501.0,0.00036797,5]
[426608433,1782661845000,-298.17803236,0.00036712,2]
[426608428,1782661845000,-504.54272309,0.00036712,60]
[426608449,1782661845000,-16398.73075312,0.0003689,10]
[426608439,1782661845000,-152.0,0.00036825,7]
[426608441,1782661845000,-240.0,0.00036825,7]
[426608445,1782661845000,-835.27969703,0.00036847,2]
[426608442,1782661845000,-164.86054624,0.00036846,2]
[426608438,1782661845000,-152.0,0.00036825,7]
[426608444,1782661845000,-1021.91966137,0.00036847,2]
[426608437,1782661845000,-152.0,0.00036825,7]
[426608451,1782661845000,-150.0,0.00036923,2]
[426608447,1782661845000,-400.0,0.0003687,2]
[426608440,1782661845000,-152.0,0.00036825,7]
[426608450,1782661845000,-150.0,0.00036923,2]
[426608448,1782661845000,-400.0,0.0003687,2]
[426608517,1782661846000,-389.68965321,0.00037301,2]
[426608523,1782661846000,-1007.7,0.00037327,120]
[426608521,1782661846000,-500.0,0.00037318,2]
[426608514,1782661846000,-835.27969703,0.00037301,2]
[426608520,1782661846000,-669.99780079,0.00037316,120]
[426608516,1782661846000,-210.96162956,0.00037301,2]
[426608515,1782661846000,-186.95128507,0.00037301,2]
[426608510,1782661846000,-173.72,0.00037301,30]
[426608512,1782661846000,-158.2,0.00037301,30]
[426608526,1782661846000,-14912.7091055,0.00037351,2]
[426608518,1782661846000,-66834.1254074,0.00037311,2]
[426608522,1782661846000,-32008.7901394,0.00037318,2]
[426608546,1782661846000,-1637.0,0.00037386,5]
[426608534,1782661846000,-400.0,0.0003737,2]
[426608524,1782661846000,-2447.89,0.00037337,14]
[426608528,1782661846000,-669.99780079,0.00037358,120]
[426608532,1782661846000,-221.09502105,0.00037368,120]
[426608527,1782661846000,-385.1758867,0.00037356,2]
[426608531,1782661846000,-7142.1264699,0.0003736,2]
[426608525,1782661846000,-518.73081926,0.00037349,2]
[426608529,1782661846000,-223.538734,0.0003736,120]
[426608530,1782661846000,-223.538734,0.0003736,120]
[426608536,1782661846000,-400.0,0.0003737,2]
[426608545,1782661846000,-2000.0,0.00037385,2]
[426608519,1782661846000,-1726.2385617,0.00037315,2]
[426608533,1782661846000,-400.0,0.0003737,2]
[426608513,1782661846000,-1021.91966135,0.00037301,2]
[426608498,1782661846000,-164.0,0.0003725,120]
[426608509,1782661846000,-173.72043462,0.00037301,30]
[426608544,1782661846000,-1007.7,0.00037382,120]
[426608484,1782661846000,-299529.769364,0.00037131,2]
[426608483,1782661846000,-500.0,0.0003713,2]
[426608486,1782661846000,-143453.4449225,0.00037131,2]
[426608485,1782661846000,-7736.464495,0.00037131,2]
[426608487,1782661846000,-169.95810905,0.00037138,30]
[426608488,1782661846000,-200.0,0.00037141,10]
[426608489,1782661846000,-669.99780079,0.0003715,120]
[426608492,1782661846000,-260.0,0.00037171,43]
[426608495,1782661846000,-503.1,0.000372,7]
[426608493,1782661846000,-203.03060308,0.00037186,9]
[426608491,1782661846000,-219.28,0.00037169,60]
[426608511,1782661846000,-158.2029824,0.00037301,30]
[426608490,1782661846000,-1007.7,0.00037164,120]
[426608496,1782661846000,-1007.7,0.00037218,120]
[426608500,1782661846000,-1007.7,0.00037273,120]
[426608507,1782661846000,-623.73664059,0.000373,120]
[426608505,1782661846000,-3607.3863016,0.00037297,2]
[426608499,1782661846000,-400.0,0.0003727,2]
[426608506,1782661846000,-1128.49654137,0.00037297,2]
[426608503,1782661846000,-20940.26964229,0.00037288,2]
[426608497,1782661846000,-669.99780079,0.00037233,120]
[426608501,1782661846000,-669.99780079,0.00037275,120]
[426608502,1782661846000,-501.0,0.00037277,5]
[426608504,1782661846000,-164.86054624,0.00037289,2]
[426608508,1782661846000,-173.72043462,0.00037301,30]
[426608494,1782661846000,-669.99780079,0.00037191,120]
[426608547,1782661846000,-201.99690834,0.00037386,2]
[426608541,1782661846000,-2192.64,0.00037378,2]
[426608540,1782661846000,-318.73,0.00037378,60]
[426608568,1782661846000,-152.570663,0.00037389,30]
[426608573,1782661846000,-315.0,0.00037389,120]
[426608576,1782661846000,-219.7813313,0.0003739,2]
[426608572,1782661846000,-370.0,0.00037389,120]
[426608574,1782661846000,-296.1741493,0.0003739,2]
[426608577,1782661846000,-300.61712355,0.0003739,2]
[426608586,1782661846000,-153.0,0.00037394,120]
[426608587,1782661846000,-155.0,0.00037394,120]
[426608580,1782661846000,-268.88738468,0.0003739,2]
[426608588,1782661846000,-189.0,0.00037394,120]
[426608581,1782661846000,-245.5869705,0.0003739,2]
[426608578,1782661846000,-318.61806724,0.0003739,2]
[426608571,1782661846000,-157.0,0.00037389,120]
[426608583,1782661846000,-300.0,0.00037393,10]
[426608579,1782661846000,-303.69182785,0.0003739,2]
[426608584,1782661846000,-666.0,0.00037393,30]
[426608582,1782661846000,-295.22791388,0.00037392,2]
[426608585,1782661846000,-542.27995136,0.00037393,30]
[426608596,1782661846000,-151.0,0.00037394,30]
[426608592,1782661846000,-275.15065801,0.00037394,3]
[426608591,1782661846000,-2482.0,0.00037394,120]
[426608595,1782661846000,-151.0,0.00037394,30]
[426608535,1782661846000,-400.0,0.0003737,2]
[426608597,1782661846000,-151.0,0.00037394,30]
[426608590,1782661846000,-153.0,0.00037394,120]
[426608593,1782661846000,-151.0,0.00037394,30]
[426608589,1782661846000,-158.0,0.00037394,120]
[426608570,1782661846000,-153.0,0.00037389,120]
[426608594,1782661846000,-151.0,0.00037394,30]
[426608575,1782661846000,-238.80382879,0.0003739,2]
[426608543,1782661846000,-357.19,0.00037382,60]
[426608537,1782661846000,-400.0,0.0003737,2]
[426608538,1782661846000,-4332.7025708,0.00037374,2]
[426608539,1782661846000,-6762.4658544,0.00037374,2]
[426608542,1782661846000,-425.68,0.00037378,7]
[426608548,1782661846000,-200.0,0.00037386,2]
[426608549,1782661846000,-154.00796842,0.00037386,14]
[426608552,1782661846000,-185.28,0.00037386,2]
[426608556,1782661846000,-1627.2,0.00037387,120]
[426608554,1782661846000,-268.92,0.00037386,2]
[426608553,1782661846000,-185.23,0.00037386,2]
[426608551,1782661846000,-1017.93,0.00037386,2]
[426608550,1782661846000,-151.0,0.00037386,14]
[426608555,1782661846000,-151.0,0.00037386,2]
[426608567,1782661846000,-151.0,0.00037389,30]
[426608557,1782661846000,-185.49115015,0.00037389,2]
[426608564,1782661846000,-151.0,0.00037389,30]
[426608562,1782661846000,-151.0,0.00037389,30]
[426608563,1782661846000,-151.0,0.00037389,30]
[426608565,1782661846000,-294.218836,0.00037389,30]
[426608569,1782661846000,-159.0,0.00037389,120]
[426608561,1782661846000,-151.0,0.00037389,30]
[426608559,1782661846000,-250.0,0.00037389,7]
[426608560,1782661846000,-151.0,0.00037389,30]
[426608558,1782661846000,-185.49115015,0.00037389,2]
[426608566,1782661846000,-151.0,0.00037389,30]
[426608631,1782661847000,-151.0,0.00037397,30]
[426608629,1782661847000,-648.53613,0.00037397,30]
[426608630,1782661847000,-151.0,0.00037397,30]
[426608627,1782661847000,-648.53613,0.00037397,30]
[426608628,1782661847000,-648.53613,0.00037397,30]
[426608625,1782661847000,-648.53613,0.00037397,30]
[426608632,1782661847000,-151.0,0.00037397,30]
[426608626,1782661847000,-159.933214,0.00037397,30]
[426608635,1782661847000,-159.473421,0.00037397,30]
[426608633,1782661847000,-151.0,0.00037397,30]
[426608645,1782661847000,-151.0,0.00037397,30]
[426608637,1782661847000,-151.0,0.00037397,30]
[426608636,1782661847000,-151.0,0.00037397,30]
[426608647,1782661847000,-151.0,0.00037397,30]
[426608638,1782661847000,-151.0,0.00037397,30]
[426608639,1782661847000,-157.71656,0.00037397,30]
[426608640,1782661847000,-300.0,0.00037397,21]
[426608646,1782661847000,-151.0,0.00037397,30]
[426608642,1782661847000,-300.0,0.00037397,21]
[426608644,1782661847000,-151.0,0.00037397,30]
[426608641,1782661847000,-300.0,0.00037397,21]
[426608621,1782661847000,-648.53613,0.00037397,30]
[426608634,1782661847000,-151.0,0.00037397,30]
[426608617,1782661847000,-648.53613,0.00037397,30]
[426608608,1782661847000,-151.0,0.00037394,30]
[426608616,1782661847000,-150.0,0.00037397,7]
[426608643,1782661847000,-388.765093,0.00037397,21]
[426608599,1782661847000,-151.0,0.00037394,30]
[426608600,1782661847000,-151.0,0.00037394,30]
[426608598,1782661847000,-151.0,0.00037394,30]
[426608601,1782661847000,-151.0,0.00037394,30]
[426608605,1782661847000,-151.0,0.00037394,30]
[426608602,1782661847000,-299.291521,0.00037394,30]
[426608606,1782661847000,-153.254805,0.00037394,30]
[426608604,1782661847000,-151.0,0.00037394,30]
[426608603,1782661847000,-151.0,0.00037394,30]
[426608609,1782661847000,-151.0,0.00037394,30]
[426608607,1782661847000,-151.0,0.00037394,30]
[426608611,1782661847000,-158.623117,0.00037394,30]
[426608610,1782661847000,-151.0,0.00037394,30]
[426608614,1782661847000,-500.0,0.00037397,7]
[426608624,1782661847000,-648.53613,0.00037397,30]
[426608618,1782661847000,-648.53613,0.00037397,30]
[426608612,1782661847000,-2000.0,0.00037396,120]
[426608620,1782661847000,-648.53613,0.00037397,30]
[426608622,1782661847000,-648.53613,0.00037397,30]
[426608613,1782661847000,-500.0,0.00037397,7]
[426608623,1782661847000,-648.53613,0.00037397,30]
[426608619,1782661847000,-648.53613,0.00037397,30]
[426608615,1782661847000,-455.41626888,0.00037397,7]
[426608648,1782661847000,-151.0,0.00037397,30]
[426608696,1782661847000,-939.76482519,0.000374,2]
[426608651,1782661847000,-428.072156,0.00037397,30]
[426608675,1782661847000,-151.0,0.00037397,30]
[426608672,1782661847000,-2061.051868,0.00037397,28]
[426608679,1782661847000,-156.0,0.00037397,120]
[426608680,1782661847000,-154.0,0.00037397,120]
[426608685,1782661847000,-150.0,0.000374,7]
[426608681,1782661847000,-185.48,0.00037397,2]
[426608683,1782661847000,-245.89037634,0.000374,120]
[426608684,1782661847000,-150.0,0.000374,7]
[426608686,1782661847000,-500.0,0.000374,3]
[426608689,1782661847000,-3107.659,0.000374,30]
[426608676,1782661847000,-151.0,0.00037397,30]
[426608694,1782661847000,-1119.97298055,0.000374,2]
[426608690,1782661847000,-3107.659,0.000374,30]
[426608688,1782661847000,-1546.09,0.000374,120]
[426608691,1782661847000,-3107.66,0.000374,30]
[426608687,1782661847000,-500.11320182,0.000374,3]
[426608692,1782661847000,-214.0,0.000374,2]
[426608698,1782661847000,-500.0,0.000374,2]
[426608695,1782661847000,-1119.97298055,0.000374,2]
[426608699,1782661847000,-500.0,0.000374,2]
[426608697,1782661847000,-500.0,0.000374,2]
[426608700,1782661847000,-500.0,0.000374,2]
[426608693,1782661847000,-503.1,0.000374,7]
[426608674,1782661847000,-151.0,0.00037397,30]
[426608682,1782661847000,-669.99780079,0.00037399,120]
[426608677,1782661847000,-200.0,0.00037397,2]
[426608649,1782661847000,-151.0,0.00037397,30]
[426608659,1782661847000,-428.072156,0.00037397,30]
[426608652,1782661847000,-428.072156,0.00037397,30]
[426608656,1782661847000,-428.072156,0.00037397,30]
[426608678,1782661847000,-154.0,0.00037397,120]
[426608655,1782661847000,-428.072156,0.00037397,30]
[426608654,1782661847000,-428.072156,0.00037397,30]
[426608657,1782661847000,-428.072156,0.00037397,30]
[426608658,1782661847000,-428.072156,0.00037397,30]
[426608661,1782661847000,-428.072156,0.00037397,30]
[426608660,1782661847000,-428.072156,0.00037397,30]
[426608653,1782661847000,-428.072156,0.00037397,30]
[426608662,1782661847000,-2061.051868,0.00037397,28]
[426608663,1782661847000,-2061.051868,0.00037397,28]
[426608673,1782661847000,-2061.051868,0.00037397,28]
[426608671,1782661847000,-2061.051868,0.00037397,28]
[426608669,1782661847000,-2061.051868,0.00037397,28]
[426608670,1782661847000,-2061.051868,0.00037397,28]
[426608650,1782661847000,-428.072156,0.00037397,30]
[426608666,1782661847000,-2061.051868,0.00037397,28]
[426608668,1782661847000,-2061.051868,0.00037397,28]
[426608667,1782661847000,-2061.051868,0.00037397,28]
[426608665,1782661847000,-2061.051868,0.00037397,28]
[426608664,1782661847000,-2061.051868,0.00037397,28]
[426608701,1782661848000,-472.94619313,0.000374,2]
[426608704,1782661848000,-212081.0013841,0.000374,25]
[426608703,1782661848000,-671.13214735,0.000374,60]
[426608702,1782661848000,-1310.0,0.000374,7]
[426608705,1782661848000,-4699216.08737236,0.00037401,30]
[426608707,1782661848000,-5403.8167257,0.00037401,30]
[426608708,1782661848000,-4461.06857084,0.00037401,30]
[426608710,1782661848000,-166.14,0.00023736,2]
[426608709,1782661848000,-12603.03248196,0.00037401,30]
[426608711,1782661848000,-986.24968876,0.00027397,10]
[426608713,1782661848000,-585.52662598,0.00027397,10]
[426608714,1782661848000,-116.43806226,0.00027397,10]
[426608715,1782661848000,-1803.77838496,0.000192,2]
[426608706,1782661848000,-3196.0,0.00037401,30]
[426608712,1782661848000,-875.50000001,0.00027397,10]
[426608716,1782661875000,-1970.89587491,0.000192,2]
[426608717,1782661924000,526.4,0.00037401,120]
[426608718,1782661944000,278.84,0.00028178,120]
[426608719,1782662022000,80183.88957143,0.00015,2]
[426608723,1782662080000,-189.26062562,0.00014999,2]
[426608724,1782662080000,-213.39810564,0.00014999,2]
[426608722,1782662080000,-500.0,0.00014999,2]
[426608721,1782662080000,-197.95088107,0.00014999,2]
[426608720,1782662080000,-500.0,0.00014999,2]
[426608738,1782662081000,-500.0,0.00014999,2]
[426608739,1782662081000,-500.0,0.00014999,2]
[426608737,1782662081000,-500.0,0.00014999,2]
[426608735,1782662081000,-500.0,0.00014999,2]
[426608736,1782662081000,-500.0,0.00014999,2]
[426608733,1782662081000,-500.0,0.00014999,2]
[426608728,1782662081000,-234.95085429,0.00014999,2]
[426608731,1782662081000,-500.0,0.00014999,2]
[426608730,1782662081000,-500.0,0.00014999,2]
[426608740,1782662081000,-500.0,0.00014999,2]
[426608729,1782662081000,-500.0,0.00014999,2]
[426608727,1782662081000,-611.14918707,0.00014999,2]
[426608726,1782662081000,-508.18315355,0.00014999,2]
[426608725,1782662081000,-500.0,0.00014999,2]
[426608732,1782662081000,-500.0,0.00014999,2]
[426608742,1782662081000,-500.0,0.00014999,2]
[426608734,1782662081000,-500.0,0.00014999,2]
[426608741,1782662081000,-500.0,0.00014999,2]
[426608743,1782662081000,-500.0,0.00014999,2]
[426608758,1782662081000,-500.0,0.00014999,2]
[426608757,1782662081000,-500.0,0.00014999,2]
[426608755,1782662081000,-500.0,0.00014999,2]
[426608756,1782662081000,-500.0,0.00014999,2]
[426608752,1782662081000,-500.0,0.00014999,2]
[426608753,1782662081000,-500.0,0.00014999,2]
[426608754,1782662081000,-500.0,0.00014999,2]
[426608750,1782662081000,-500.0,0.00014999,2]
[426608751,1782662081000,-500.0,0.00014999,2]
[426608749,1782662081000,-500.0,0.00014999,2]
[426608745,1782662081000,-500.0,0.00014999,2]
[426608744,1782662081000,-500.0,0.00014999,2]
[426608746,1782662081000,-500.0,0.00014999,2]
[426608747,1782662081000,-500.0,0.00014999,2]
[426608748,1782662081000,-500.0,0.00014999,2]
[426608761,1782662082000,-500.0,0.00014999,2]
[426608759,1782662082000,-500.0,0.00014999,2]
[426608760,1782662082000,-500.0,0.00014999,2]
[426608762,1782662082000,-500.0,0.00014999,2]
[426608763,1782662082000,-500.0,0.00014999,2]
[426608764,1782662082000,-500.0,0.00014999,2]
[426608769,1782662082000,-500.0,0.00014999,2]
[426608766,1782662082000,-500.0,0.00014999,2]
[426608767,1782662082000,-500.0,0.00014999,2]
[426608768,1782662082000,-500.0,0.00014999,2]
[426608770,1782662082000,-300.0,0.00014999,2]
[426608771,1782662082000,-666.0,0.00014999,2]
[426608772,1782662082000,-275079.10719276,0.00015,2]
[426608765,1782662082000,-500.0,0.00014999,2]
[426608773,1782662174000,165968.81882463,0.00037401,120]
[426608777,1782662233000,-164.78204812,0.000149,2]
[426608778,1782662234000,1579.2,0.00037401,120]
[426608788,1782662286000,-1970.89587491,0.000149,2]
[426608789,1782662299000,-445.75995318,0.000149,2]
[426608790,1782662323000,500.0,0.00037401,120]
[426608792,1782662324000,198.06837276,0.00037401,120]
[426608791,1782662324000,500.0,0.00037401,120]